fUST/lending_fUST_20260109
["ID","MTS","AMOUNT","RATE_DAILY","PERIOD"]
[401082439,1767911437785,-500.0,0.00013273,2]
[401082440,1767911437794,-500.0,0.00013273,2]
[401082441,1767911437803,-500.66277805,0.00013273,2]
[401082442,1767911437812,-500.0,0.00013273,2]
[401082443,1767911437821,-500.0,0.00013273,2]
[401082444,1767911437829,-588.2860466,0.00013273,2]
[401082445,1767911437839,-500.0,0.00013273,2]
[401082446,1767911437847,-500.0,0.00013273,2]
[401082447,1767911437856,-500.0,0.00013273,2]
[401082448,1767911437866,-500.0,0.00013273,2]
[401082449,1767911437874,-501.21467235,0.00013273,2]
[401082450,1767911437883,-500.0,0.00013273,2]
[401082451,1767911437892,-500.0,0.00013273,2]
[401082452,1767911437901,-300.0,0.00013673,2]
[401082453,1767911437910,-500.0,0.00013699,2]
[401082454,1767911437919,-500.0,0.00013699,2]
[401082455,1767911437928,-500.0,0.00013699,2]
[401082456,1767911437937,-500.0,0.00013699,2]
[401082457,1767911437946,-501.8641087,0.00013699,2]
[401082458,1767911437958,-500.0,0.00013699,2]
[401082460,1767911437967,-500.0,0.00013699,2]
[401082468,1767911438142,-512.33435394,0.00013699,2]
[401082469,1767911438152,-500.0,0.00013699,2]
[401082470,1767911438161,-500.68900305,0.00013699,2]
[401082471,1767911438171,-155.09397851,0.00013699,2]
[401082472,1767911438180,-500.0,0.00013699,2]
[401082473,1767911438189,-500.0,0.00013699,2]
[401082474,1767911438199,-500.0,0.00013699,2]
[401082475,1767911438208,-500.0,0.00013699,2]
[401082476,1767911438218,-500.0,0.00013699,2]
[401082477,1767911438227,-482.84709438,0.00013699,2]
[401082478,1767911438237,-500.0,0.00013699,2]
[401082479,1767911438246,-500.0,0.00013699,2]
[401082480,1767911438255,-500.0,0.00013699,2]
[401082481,1767911438265,-500.0,0.00013699,2]
[401082482,1767911438274,-500.0,0.00013699,2]
[401082483,1767911438283,-500.0,0.00013699,2]
[401082484,1767911438292,-500.0,0.00013699,2]
[401082485,1767911438301,-500.0,0.00013699,2]
[401082486,1767911438311,-500.0,0.00013699,2]
[401082487,1767911438320,-500.0,0.00013699,2]
[401082488,1767911438330,-500.0,0.00013699,2]
[401082489,1767911438339,-500.0,0.00013699,2]
[401082490,1767911438348,-500.0,0.00013699,2]
[401082491,1767911438357,-500.0,0.00013699,2]
[401082492,1767911438367,-500.0,0.00013699,2]
[401082493,1767911438376,-500.0,0.00013699,2]
[401082494,1767911438385,-420.0,0.00013819,2]
[401082495,1767911438394,-1000.0,0.00013821,2]
[401082496,1767911438404,-1000.0,0.00013821,2]
[401082497,1767911438414,-1000.0,0.00013821,2]
[401082498,1767911438424,-1000.0,0.00013821,2]
[401082499,1767911438433,-500.0,0.00013821,2]
[401082500,1767911438442,-500.0,0.00013821,2]
[401082501,1767911438451,-502.10613281,0.00013821,2]
[401082502,1767911438461,-500.0,0.00013821,2]
[401082503,1767911438471,-1000.0,0.00013821,2]
[401082504,1767911438480,-1000.0,0.00013821,2]
[401082505,1767911438489,-1006.74415815,0.00013821,2]
[401082506,1767911438498,-1000.0,0.00013821,2]
[401082507,1767911438507,-1000.0,0.00013821,2]
[401082508,1767911438515,-1000.0,0.00013821,2]
[401082509,1767911438524,-1000.0,0.00013821,2]
[401082510,1767911438533,-177.69550258,0.00013821,2]
[401082511,1767911438543,-300.04302299,0.00013821,2]
[401082512,1767911438552,-1000.0,0.00013821,2]
[401082513,1767911438562,-1000.0,0.00013821,2]
[401082514,1767911438572,-1000.0,0.00013821,2]
[401082515,1767911438581,-1000.0,0.00013821,2]
[401082516,1767911438590,-1000.0,0.00013821,2]
[401082517,1767911438599,-1000.0,0.00013821,2]
[401082518,1767911438609,-1000.0,0.00013821,2]
[401082519,1767911438618,-1000.0,0.00013821,2]
[401082520,1767911438627,-352.78202196,0.000141,2]
[401082521,1767911438636,-720.0,0.00014138,2]
[401082522,1767911438645,-600.0,0.00014221,2]
[401082523,1767911438656,-1000.0,0.00014235,2]
[401082524,1767911438665,-501.75744597,0.00014247,2]
[401082525,1767911438674,-46.4721137,0.00014247,2]
[401082526,1767911438736,-453.5278863,0.00014247,2]
[401082528,1767911438745,-316.1319489,0.00014247,2]
[401082530,1767911438754,-1000.0,0.00014247,2]
[401082532,1767911438763,-385.64023148,0.00014247,2]
[401082534,1767911438772,-420.06493089,0.00014247,2]
[401082536,1767911438780,-500.0,0.00014247,2]
[401082538,1767911438789,-250.0,0.00014247,2]
[401082539,1767911438798,-1000.0,0.00014247,2]
[401082540,1767911438807,-838.23457806,0.00014247,2]
[401082541,1767911438816,-388.07347701,0.00014247,2]
[401082543,1767911438825,-1000.0,0.00014247,2]
[401082545,1767911438834,-474.34002557,0.00014247,2]
[401082546,1767911438844,-1000.0,0.00014247,2]
[401082547,1767911438853,-421.00515568,0.00014247,2]
[401082548,1767911438862,-1000.0,0.00014247,2]
[401082549,1767911438871,-1000.0,0.00014247,2]
[401082550,1767911438880,-1000.0,0.00014247,2]
[401082551,1767911438890,-1000.0,0.00014247,2]
[401082552,1767911438899,-1000.0,0.00014247,2]
[401082553,1767911438908,-143.39887264,0.00014247,2]
[401082554,1767911438919,-856.60112736,0.00014247,2]
[401082555,1767911438929,-1000.0,0.00014247,2]
[401082556,1767911438937,-98.67384949,0.00014247,2]
[401082557,1767911438953,-901.32615051,0.00014247,2]
[401082558,1767911438963,-1000.0,0.00014247,2]
[401082559,1767911438972,-1006.84567032,0.00014247,2]
[401082560,1767911438981,-500.0,0.00014247,2]
[401082561,1767911438991,-1000.0,0.00014247,2]
[401082562,1767911439001,-1000.0,0.00014247,2]
[401082563,1767911439010,-452.94469565,0.00014368,2]
[401082564,1767911439019,-348.02677521,0.00014368,2]
[401082565,1767911439033,-500.0,0.00014368,2]
[401082566,1767911439043,-1500.0,0.00014368,2]
[401082567,1767911439053,-1500.0,0.00014368,2]
[401082568,1767911439062,-1041.12357041,0.00014368,2]
[401082569,1767911439071,-1500.0,0.00014368,2]
[401082570,1767911439080,-1500.0,0.00014368,2]
[401082571,1767911439090,-1369.5151472,0.00014368,2]
[401082572,1767911439100,-354.0529105,0.00014368,2]
[401082573,1767911439109,-1500.0,0.00014368,2]
[401082574,1767911439118,-1500.0,0.00014368,2]
[401082575,1767911439127,-1500.0,0.00014368,2]
[401082576,1767911439136,-900.0,0.00014768,2]
[401082577,1767911439145,-1500.0,0.00014795,2]
[401082578,1767911439154,-392.93732994,0.00014795,2]
[401082579,1767911439163,-1546.66896035,0.00014795,2]
[401082580,1767911439172,-1645.40081224,0.00014795,2]
[401082581,1767911439181,-503.80919542,0.00014795,2]
[401082582,1767911439191,-1608.00999349,0.00014795,2]
[401082583,1767911439200,-1500.0,0.00014795,2]
[401082584,1767911439210,-1500.0,0.00014795,2]
[401082585,1767911439219,-1500.0,0.00014795,2]
[401082586,1767911439228,-1500.0,0.00014795,2]
[401082587,1767911439238,-1144.01857865,0.00014795,2]
[401082588,1767911439248,-1634.65901332,0.00014795,2]
[401082589,1767911439257,-1500.0,0.00014795,2]
[401082590,1767911439266,-454.08900073,0.000149,2]
[401082591,1767911439275,-454.08900072,0.000149,2]
[401082592,1767911439284,-454.08900072,0.000149,2]
[401082593,1767911439294,-2000.0,0.00014916,2]
[401082594,1767911439303,-1910.05192145,0.00014916,2]
[401082595,1767911439312,-2000.0,0.00014916,2]
[401082596,1767911439322,-1190.210437,0.00014916,2]
[401082597,1767911439331,-2000.0,0.00014916,2]
[401082598,1767911439340,-2000.0,0.00014916,2]
[401082599,1767911439350,-2000.0,0.00014916,2]
[401082600,1767911439359,-800.0,0.00015068,2]
[401082601,1767911439368,-587.0,0.00015161,2]
[401082602,1767911439377,-2099.95885506,0.00015176,2]
[401082603,1767911439386,-1200.0,0.00015316,2]
[401082604,1767911439395,-1638.28627856,0.00015342,2]
[401082605,1767911439405,-2000.0,0.00015342,2]
[401082606,1767911439414,-2000.0,0.00015342,2]
[401082607,1767911439423,-2000.0,0.00015342,2]
[401082608,1767911439432,-2000.0,0.00015342,2]
[401082609,1767911439441,-2000.0,0.00015342,2]
[401082610,1767911439450,-1000.0,0.000154,2]
[401082611,1767911439459,-502.92123591,0.00015464,2]
[401082612,1767911439468,-2500.0,0.00015464,2]
[401082613,1767911439476,-2500.0,0.00015464,2]
[401082614,1767911439485,-2500.0,0.00015464,2]
[401082615,1767911439494,-896.00511375,0.00015464,2]
[401082616,1767911439503,-864.0,0.00015552,2]
[401082617,1767911439512,-1500.0,0.00015864,2]
[401082618,1767911439520,-2500.0,0.0001589,2]
[401082619,1767911439529,-2500.0,0.0001589,2]
[401082620,1767911439538,-2500.0,0.0001589,2]
[401082621,1767911439547,-1586.48750274,0.0001589,2]
[401082622,1767911439556,-2500.0,0.0001589,2]
[401082623,1767911439565,-431.87152532,0.00015989,2]
[401082624,1767911439574,-828.76719696,0.00015989,2]
[401082625,1767911439583,-828.76719696,0.00015989,2]
[401082626,1767911439592,-828.76719696,0.00015989,2]
[401082627,1767911439600,-828.76719696,0.00015989,2]
[401082628,1767911439611,-828.76719696,0.00015989,2]
[401082629,1767911439620,-828.76719696,0.00015989,2]
[401082630,1767911439628,-828.76719696,0.00015989,2]
[401082631,1767911439638,-828.76719696,0.00015989,2]
[401082632,1767911439647,-828.76719696,0.00015989,2]
[401082633,1767911439656,-828.76719696,0.00015989,2]
[401082634,1767911439664,-828.76719696,0.00015989,2]
[401082635,1767911439673,-828.76719696,0.00015989,2]
[401082636,1767911439683,-828.76719696,0.00015989,2]
[401082637,1767911439692,-100000.0,0.0001599,2]
[401082638,1767911439701,-8147.3228475,0.00016,2]
[401082639,1767911439710,-2032.8743507,0.00016012,2]
[401082640,1767911439719,-2009.97635533,0.00016012,2]
[401082641,1767911439728,-3000.0,0.00016012,2]
[401082642,1767911439738,-406.59622869,0.000161,2]
[401082643,1767911439747,-1600.0,0.00016164,2]
[401082644,1767911439756,-1800.0,0.00016412,2]
[401082645,1767911439765,-500.0,0.00016438,2]
[401082646,1767911439775,-164.10892372,0.00016438,2]
[401082647,1767911439783,-3000.0,0.00016438,2]
[401082648,1767911439792,-3000.0,0.00016438,2]
[401082649,1767911439801,-1526.70356569,0.00016438,2]
[401082650,1767911439811,-3000.0,0.00016438,2]
[401082651,1767911439821,-3500.0,0.0001656,2]
[401082652,1767911439830,-823.0,0.00016633,2]
[401082653,1767911439839,-2100.0,0.0001696,2]
[401082654,1767911439849,-3500.0,0.00016986,2]
[401082655,1767911439858,-3500.0,0.00016986,2]
[401082656,1767911439867,-3500.0,0.00016986,2]
[401082657,1767911439875,-50227.76823266,0.00017,2]
[401082658,1767911439884,-156358.86996262,0.0001701,3]
[401082659,1767911439893,-1000.0,0.00017107,2]
[401082660,1767911439902,-4000.0,0.00017108,2]
[401082661,1767911439911,-2400.0,0.0001726,2]
[401082662,1767911439920,-267.0,0.00017419,2]
[401082663,1767911439930,-2400.0,0.00017508,2]
[401082664,1767911439939,-4000.0,0.00017534,2]
[401082665,1767911439947,-4000.0,0.00017534,2]
[401082666,1767911439960,-4000.0,0.00017534,2]
[401082667,1767911439969,-4500.0,0.00017656,2]
[401082668,1767911439979,-150894.00766706,0.00018,2]
[401082669,1767911439988,-3120.51812043,0.00018,5]
[401082670,1767911439997,-2700.0,0.00018056,2]
[401082671,1767911440007,-4500.0,0.00018082,2]
[401082672,1767911440022,-4395.64095761,0.00018082,2]
[401082673,1767911440042,-4500.0,0.00018082,2]
[401082674,1767911440063,-460.41043543,0.000181,2]
[401082675,1767911440104,-5000.0,0.00018204,2]
[401082676,1767911440142,-1152.0,0.00018248,2]
[401082677,1767911440166,-1899.64931956,0.00018356,2]
[401082679,1767911440190,-2168.9986142,0.00018604,2]
[401082681,1767911440213,-5000.0,0.0001863,2]
[401082682,1767911440238,-3167.21136956,0.0001863,2]
[401082683,1767911440258,-2031.92126105,0.00018752,2]
[401082684,1767911440267,-1000.0,0.00018818,2]
[401082685,1767911440277,-244.0,0.00018818,2]
[401082686,1767911440286,-2566.24195815,0.00018859,2]
[401082687,1767911440296,-125980.80402723,0.000189,5]
[401082688,1767911440306,-230.19474322,0.00018959,3]
[401082689,1767911440315,-356.47419888,0.00019,20]
[401082690,1767911440325,-5500.0,0.00019178,2]
[401082691,1767911440335,-162.88,0.000192,2]
[401082692,1767911440344,-163.0,0.000192,2]
[401082693,1767911440354,-904.83,0.000192,2]
[401082694,1767911440363,-17902.14,0.000192,2]
[401082695,1767911440372,-167.4,0.000192,2]
[401082696,1767911440381,-498.42576809,0.00019205,5]
[401082697,1767911440390,-6000.0,0.00019726,2]
[401082698,1767911440399,-1003.0,0.0002,2]
[401082699,1767911440408,-300.26582625,0.0002,2]
[401082700,1767911440417,-300.00061585,0.0002,7]
[401082701,1767911440427,-77453.2393471,0.0002,2]
[401082702,1767911440437,-1613.0,0.00020021,2]
[401082703,1767911440445,-514.22464217,0.000201,2]
[401082704,1767911440454,-6500.0,0.00020274,2]
[401082705,1767911440463,-419.6,0.00020289,2]
[401082706,1767911440472,-1041.66666667,0.00020543,2]
[401082707,1767911440482,-300.0,0.00020548,5]
[401082708,1767911440491,-1000.0,0.00020699,2]
[401082709,1767911440500,-492.0,0.00020699,2]
[401082710,1767911440509,-300.0,0.00020822,5]
[401082711,1767911440518,-7000.0,0.00020822,2]
[401082712,1767911440527,-599.999999,0.00021,2]
[401082713,1767911440537,-24790.43694266,0.00021,2]
[401082714,1767911440546,-184.0,0.00021151,4]
[401082715,1767911440555,-2566.24195812,0.00021319,2]
[401082716,1767911440564,-505.53140952,0.0002137,2]
[401082717,1767911440575,-419.6,0.00021465,2]
[401082718,1767911440584,-1039.02352417,0.000215,2]
[401082719,1767911440594,-12852.18434421,0.000215,2]
[401082720,1767911440603,-17902.14,0.000215,2]
[401082721,1767911440612,-300.0,0.00021918,7]
[401082722,1767911440621,-300.0,0.00021918,7]
[401082723,1767911440631,-250.0,0.00021918,7]
[401082724,1767911440640,-305.0,0.00021918,7]
[401082725,1767911440649,-1123.0,0.00021965,2]
[401082726,1767911440658,-518.09,0.00022,7]
[401082727,1767911440667,-4843.47004095,0.00022,20]
[401082728,1767911440676,-65900.90410388,0.00022,2]
[401082729,1767911440685,-568.03884891,0.000221,2]
[401082730,1767911440694,-2451.0153588,0.00022166,2]
[401082731,1767911440703,-2451.0153588,0.00022312,2]
[401082732,1767911440712,-2000.51544348,0.00022413,2]
[401082733,1767911440721,-2451.0153588,0.00022619,2]
[401082734,1767911440730,-419.6,0.0002264,2]
[401082735,1767911440739,-285.59,0.000227,2]
[401082736,1767911440748,-904.83,0.000227,14]
[401082737,1767911440757,-300.0,0.0002274,7]
[401082738,1767911440766,-1000.0,0.00022769,10]
[401082739,1767911440775,-791.0,0.00022769,10]
[401082740,1767911440784,-2451.0153588,0.00022798,2]
[401082742,1767911440794,-1041.66666667,0.00023,3]
[401082744,1767911440803,-2451.0153588,0.00023248,2]
[401082746,1767911440814,-300.0,0.00023288,7]
[401082748,1767911440823,-959.29956419,0.00023319,2]
[401082750,1767911440832,-3833.36105852,0.00023319,2]
[401082752,1767911440841,-186.0,0.00023342,9]
[401082754,1767911440851,-2451.0153588,0.00023399,2]
[401082756,1767911440859,-17902.14,0.000237,2]
[401082758,1767911440868,-2566.24195812,0.0002378,2]
[401082760,1767911440877,-2451.0153588,0.00023789,2]
[401082762,1767911440885,-419.6,0.00023816,2]
[401082764,1767911440894,-300.0,0.00023836,7]
[401082766,1767911440903,-2451.0153588,0.00023978,2]
[401082768,1767911440913,-518.09,0.00024,7]
[401082770,1767911440922,-621.85305565,0.000241,2]
[401082772,1767911440931,-300.0,0.0002411,7]
[401082774,1767911440939,-452487.29550047,0.00024142,2]
[401082776,1767911440948,-162.88,0.000242,7]
[401082778,1767911440960,-163.0,0.000242,7]
[401082780,1767911440969,-50264.40458466,0.000242,2]
[401082782,1767911440978,-2451.0153588,0.0002433,2]
[401082784,1767911440986,-401.46,0.00024384,7]
[401082786,1767911440995,-2451.0153588,0.0002447,2]
[401082788,1767911441005,-904.83,0.000246,14]
[401082790,1767911441014,-156750.63074783,0.0002465,2]
[401082792,1767911441023,-513.88250982,0.0002465,2]
[401082794,1767911441033,-151.0,0.00024658,2]
[401082796,1767911441042,-151.0,0.00024658,2]
[401082798,1767911441051,-151.0,0.00024658,2]
[401082800,1767911441061,-151.0,0.00024658,2]
[401082802,1767911441071,-151.0,0.00024658,2]
[401082804,1767911441079,-151.0,0.00024658,2]
[401082806,1767911441088,-151.0,0.00024658,2]
[401082808,1767911441097,-151.0,0.00024658,2]
[401082810,1767911441106,-2451.0153588,0.00024735,2]
[401082812,1767911441115,-16824.61855787,0.00024774,2]
[401082814,1767911441125,-228580.750232,0.000248,2]
[401082816,1767911441135,-151.0,0.000248,7]
[401082818,1767911441144,-151.0,0.000248,7]
[401082820,1767911441153,-151.0,0.000248,7]
[401082822,1767911441162,-151.0,0.000248,7]
[401082824,1767911441171,-396238.17852675,0.000249,2]
[401082845,1767911441359,-1149.9029988,0.00012799,2]
[401082862,1767911441494,-3382.93313115,0.00014793,2]
[401083662,1767911880672,171.18,4.995e-05,2]
[401083663,1767911880951,171.18,4.995e-05,2]
[401083681,1767912527800,155.0,5e-05,2]
[401083696,1767912631705,-166.66666668,0.00012395,2]
[401083697,1767912631715,-595.0,0.00012395,2]
[401083698,1767912631725,-305.08494088,0.00012408,2]
[401083699,1767912631735,-300.0,0.00012494,2]
[401083700,1767912631744,-16469.66172814,0.00012495,2]
[401083701,1767912631754,-300.0,0.00012745,2]
[401083702,1767912631764,-300.0,0.00012745,2]
[401083704,1767912631773,-300.0,0.00012745,2]
[401083706,1767912631783,-300.0,0.00012745,2]
[401083708,1767912631792,-300.0,0.00012745,2]
[401083711,1767912631803,-300.0,0.00012745,2]
[401083713,1767912631812,-300.0,0.00012745,2]
[401083715,1767912631822,-300.0,0.00012745,2]
[401083717,1767912631831,-300.0,0.00012745,2]
[401083719,1767912631841,-300.0,0.00012745,2]
[401083721,1767912631851,-300.0,0.00012745,2]
[401083723,1767912631860,-300.0,0.00012745,2]
[401083725,1767912631869,-300.0,0.00012745,2]
[401083727,1767912631878,-300.0,0.00012745,2]
[401083728,1767912631887,-300.0,0.00012745,2]
[401083730,1767912631896,-600.0,0.00012745,2]
[401083732,1767912631906,-500.0,0.00013273,2]
[401083734,1767912631915,-500.0,0.00013273,2]
[401083736,1767912631924,-500.0,0.00013273,2]
[401083738,1767912631934,-500.0,0.00013273,2]
[401083740,1767912631943,-500.0,0.00013273,2]
[401083741,1767912631953,-500.0,0.00013273,2]
[401083742,1767912631962,-500.0,0.00013273,2]
[401083744,1767912631972,-500.0,0.00013273,2]
[401083746,1767912631982,-500.0,0.00013273,2]
[401083748,1767912631991,-500.0,0.00013273,2]
[401083750,1767912632000,-348.02677521,0.00013273,2]
[401083752,1767912632010,-500.0,0.00013273,2]
[401083753,1767912632020,-500.0,0.00013273,2]
[401083754,1767912632029,-500.0,0.00013273,2]
[401083755,1767912632039,-500.0,0.00013273,2]
[401083756,1767912632048,-500.0,0.00013273,2]
[401083757,1767912632057,-500.0,0.00013273,2]
[401083758,1767912632066,-500.0,0.00013273,2]
[401083759,1767912632076,-500.0,0.00013586,2]
[401083760,1767912632086,-441.16185541,0.00013586,2]
[401083761,1767912632096,-500.0,0.00013586,2]
[401083762,1767912632105,-481.24797325,0.00013586,2]
[401083763,1767912632115,-500.0,0.00013586,2]
[401083764,1767912632125,-490.27864179,0.00013586,2]
[401083765,1767912632134,-500.0,0.00013586,2]
[401083766,1767912632144,-468.48227949,0.00013586,2]
[401083767,1767912632153,-1064.26654258,0.00013587,2]
[401083768,1767912632164,-300.0,0.00013673,2]
[401083769,1767912632174,-500.0,0.00013699,2]
[401083770,1767912632183,-500.0,0.00013699,2]
[401083771,1767912632193,-500.0,0.00013699,2]
[401083772,1767912632202,-500.0,0.00013699,2]
[401083773,1767912632212,-374.8306527,0.00013699,2]
[401083774,1767912632221,-500.0,0.00013699,2]
[401083775,1767912632230,-500.0,0.00013699,2]
[401083776,1767912632242,-501.33075681,0.00013699,2]
[401083777,1767912632252,-615.04672569,0.00013699,2]
[401083778,1767912632261,-500.0,0.00013699,2]
[401083779,1767912632271,-503.14554213,0.00013699,2]
[401083780,1767912632282,-500.0,0.00013699,2]
[401083781,1767912632291,-500.0,0.00013699,2]
[401083782,1767912632300,-500.0,0.00013699,2]
[401083783,1767912632310,-500.0,0.00013699,2]
[401083784,1767912632319,-500.0,0.00013699,2]
[401083785,1767912632329,-500.0,0.00013699,2]
[401083786,1767912632339,-503.80919542,0.00013699,2]
[401083787,1767912632348,-500.0,0.00013699,2]
[401083788,1767912632358,-500.0,0.00013699,2]
[401083789,1767912632367,-500.0,0.00013699,2]
[401083790,1767912632376,-500.0,0.00013699,2]
[401083791,1767912632386,-440.18494809,0.00013699,2]
[401083792,1767912632398,-59.81505191,0.00013699,2]
[401083793,1767912632407,-500.0,0.00013699,2]
[401083794,1767912632417,-500.0,0.00013699,2]
[401083795,1767912632426,-500.0,0.00013699,2]
[401083796,1767912632436,-500.0,0.00013699,2]
[401083797,1767912632447,-420.0,0.00013709,2]
[401083798,1767912632456,-1000.0,0.00013821,2]
[401083799,1767912632466,-1000.0,0.00013821,2]
[401083800,1767912632476,-500.0,0.00013821,2]
[401083801,1767912632486,-1000.0,0.00013821,2]
[401083802,1767912632495,-541.12357041,0.00013821,2]
[401083803,1767912632655,-1000.0,0.00013821,2]
[401083804,1767912632665,-1000.0,0.00013821,2]
[401083805,1767912632674,-452.94469565,0.00013821,2]
[401083806,1767912632683,-1000.0,0.00013821,2]
[401083807,1767912632692,-1000.0,0.00013821,2]
[401083808,1767912632701,-1000.0,0.00013821,2]
[401083809,1767912632711,-1000.0,0.00013821,2]
[401083810,1767912632721,-720.0,0.0001402,2]
[401083811,1767912632730,-600.0,0.00014221,2]
[401083812,1767912632739,-661.95893033,0.00014247,2]
[401083813,1767912632748,-1000.0,0.00014247,2]
[401083814,1767912632758,-250.0,0.00014247,2]
[401083815,1767912632767,-500.0,0.00014247,2]
[401083816,1767912632776,-500.0,0.00014247,2]
[401083817,1767912632786,-1000.0,0.00014247,2]
[401083818,1767912632795,-1029.61129365,0.00014247,2]
[401083819,1767912632804,-1000.0,0.00014247,2]
[401083820,1767912632813,-500.0,0.00014247,2]
[401083821,1767912632823,-230.23234032,0.00014247,2]
[401083822,1767912632832,-1000.0,0.00014247,2]
[401083823,1767912632841,-500.68920715,0.00014247,2]
[401083824,1767912632850,-1000.0,0.00014247,2]
[401083825,1767912632859,-1000.0,0.00014247,2]
[401083826,1767912632869,-1108.00999349,0.00014247,2]
[401083827,1767912632878,-506.84567032,0.00014247,2]
[401083828,1767912632887,-1000.0,0.00014247,2]
[401083829,1767912632896,-401.32615051,0.00014247,2]
[401083830,1767912632905,-1000.0,0.00014247,2]
[401083831,1767912632914,-1000.0,0.00014247,2]
[401083832,1767912632924,-1500.0,0.00014368,2]
[401083833,1767912632933,-1500.0,0.00014368,2]
[401083834,1767912632942,-1500.0,0.00014368,2]
[401083835,1767912632951,-1500.0,0.00014368,2]
[401083836,1767912632961,-1500.0,0.00014368,2]
[401083837,1767912632970,-1500.0,0.00014368,2]
[401083838,1767912632979,-1500.0,0.00014368,2]
[401083839,1767912632988,-360.00023024,0.00014408,2]
[401083840,1767912632997,-900.0,0.00014768,2]
[401083841,1767912633006,-1500.0,0.00014795,2]
[401083842,1767912633016,-594.37321714,0.00014795,2]
[401083843,1767912633025,-1145.40081224,0.00014795,2]
[401083844,1767912633034,-1500.0,0.00014795,2]
[401083845,1767912633044,-1500.0,0.00014795,2]
[401083846,1767912633053,-1500.0,0.00014795,2]
[401083847,1767912633062,-644.01857865,0.00014795,2]
[401083848,1767912633072,-1134.65901332,0.00014795,2]
[401083849,1767912633081,-1004.51727604,0.00014795,2]
[401083850,1767912633091,-351.48708989,0.00014916,2]
[401083851,1767912633101,-2000.0,0.00014916,2]
[401083852,1767912633110,-766.87961262,0.00014916,2]
[401084230,1767912637797,-1233.12038738,0.00014916,2]
[401084232,1767912637806,-1993.61283818,0.00014916,2]
[401084234,1767912637816,-1369.1892099,0.00014916,2]
[401084236,1767912637825,-2000.0,0.00014916,2]
[401084238,1767912637835,-2000.0,0.00014916,2]
[401084240,1767912637844,-587.0,0.00015042,2]
[401084242,1767912637853,-800.0,0.00015068,2]
[401084244,1767912637862,-1149.9029988,0.00015106,2]
[401084246,1767912637871,-1200.0,0.00015316,2]
[401084248,1767912637880,-1409.51288327,0.00015342,2]
[401084250,1767912637890,-1190.210437,0.00015342,2]
[401084252,1767912637899,-2000.0,0.00015342,2]
[401084254,1767912637908,-2000.0,0.00015342,2]
[401084256,1767912637917,-2000.0,0.00015342,2]
[401084258,1767912637927,-1000.0,0.000154,2]
[401084260,1767912637937,-864.0,0.00015422,2]
[401084262,1767912637947,-2500.0,0.00015464,2]
[401084264,1767912637956,-2500.0,0.00015464,2]
[401084266,1767912637964,-2500.0,0.00015464,2]
[401084268,1767912637974,-2500.0,0.00015464,2]
[401084270,1767912637983,-798.86,0.0001579,2]
[401084272,1767912637992,-1500.0,0.00015864,2]
[401084274,1767912638001,-2500.0,0.0001589,2]
[401084277,1767912638011,-2500.0,0.0001589,2]
[401084278,1767912638020,-2500.0,0.0001589,2]
[401084280,1767912638029,-3000.0,0.00016012,2]
[401084282,1767912638040,-3000.0,0.00016012,2]
[401084284,1767912638049,-3009.97635533,0.00016012,2]
[401084286,1767912638059,-3000.0,0.00016012,2]
[401084288,1767912638068,-1600.0,0.00016164,2]
[401084291,1767912638077,-414.9155196,0.00016408,2]
[401084293,1767912638087,-1800.0,0.00016412,2]
[401084295,1767912638096,-500.0,0.00016438,2]
[401084296,1767912638105,-164.10892372,0.00016438,2]
[401084298,1767912638114,-571.48096018,0.00016438,2]
[401084301,1767912638123,-3000.0,0.00016438,2]